{"text_format":"1","workbook":"xlsx","n_sheets":3,"sheets":["Registo de Notas","Resumo do Aluno","Critérios de Avaliação"],"not_rendered":{"charts":1,"images":1,"macros":1,"external_links":0,"defined_names":11,"comments":0,"pivot_tables":0},"unopened":[],"bounds":{"document_bytes":16777216,"sheet_cells":100000,"rows_first":2000,"rows_last":500,"rows_between":2000,"halvings":0,"cell_chars":16384,"cell_head_chars":4096},"cells_cut":0,"cells_raw":0,"read":"whole","date_system":"1900"}

{"sheet":"Registo de Notas","index":0,"n_rows":8,"n_cols":9,"rows_kept":8,"cut":false,"hidden":false,"merged":[]}
[null,"Turma"]
[null,"Nome do Professor",null,null,null,"Data da Tarefa","2011-01-18","2011-01-25","2011-02-01"]
[null,null,null,null,"Pontuação Total Possível",{"$f":"SUM('Registo de Notas'!$G$3:$I$3)","v":90},20,20,50]
[null,"Nome do Aluno","Desempenho","Nota","%","Pontuação Total Obtida","Tarefa de escrita em aula 1","Tarefa de escrita em aula 2","Rascunho de Composição Narrativa"]
[null,"Aluno 1",{"$f":"DadosAluno[[#This Row],[Pontuação Total Obtida]]","v":90},{"$f":"IFERROR(VLOOKUP('Registo de Notas'!$E5,'Critérios de Avaliação'!$B$7:$D$20,2,TRUE),\"\")","v":"Excelente"},{"$f":"IFERROR('Registo de Notas'!$F5/PontuaçãoTotal,\"\")","v":1},{"$f":"IFERROR(SUM('Registo de Notas'!$G5:OFFSET(F5,,COUNTA(PontuaçãoTarefaTotal[]))),\"\")","v":90},20,20,50]
[null,"Aluno 2",{"$f":"DadosAluno[[#This Row],[Pontuação Total Obtida]]","v":60},{"$f":"IFERROR(VLOOKUP('Registo de Notas'!$E6,'Critérios de Avaliação'!$B$7:$D$19,2,TRUE),\"\")","v":"Não Satisfaz "},{"$f":"IFERROR('Registo de Notas'!$F6/PontuaçãoTotal,\"\")","v":0.66666666666666663},{"$f":"IFERROR(SUM('Registo de Notas'!$G6:OFFSET(F6,,COUNTA(PontuaçãoTarefaTotal[]))),\"\")","v":60},10,10,40]
[null,"Aluno 3",{"$f":"DadosAluno[[#This Row],[Pontuação Total Obtida]]","v":75},{"$f":"IFERROR(VLOOKUP('Registo de Notas'!$E7,'Critérios de Avaliação'!$B$7:$D$19,2,TRUE),\"\")","v":"Bom"},{"$f":"IFERROR('Registo de Notas'!$F7/PontuaçãoTotal,\"\")","v":0.83333333333333337},{"$f":"IFERROR(SUM('Registo de Notas'!$G7:OFFSET(F7,,COUNTA(PontuaçãoTarefaTotal[]))),\"\")","v":75},20,15,40]
[null,"Nota/Classificação Média",null,{"$f":"IFERROR(VLOOKUP(E8,'Critérios de Avaliação'!B7:D19,2,TRUE),\"\")","v":"Bom"},{"$f":"SUBTOTAL(101,DadosAluno[%])","v":0.83333333333333337},{"$f":"SUBTOTAL(101,DadosAluno[Pontuação Total Obtida])","v":75},{"$f":"SUBTOTAL(101,DadosAluno[Tarefa de escrita em aula 1])","v":16.666666666666668},{"$f":"SUBTOTAL(101,DadosAluno[Tarefa de escrita em aula 2])","v":15},{"$f":"SUBTOTAL(101,DadosAluno[Rascunho de Composição Narrativa])","v":43.333333333333336}]

{"sheet":"Resumo do Aluno","index":1,"n_rows":51,"n_cols":8,"rows_kept":51,"cut":false,"hidden":false,"merged":[[7,1,7,3],[11,1,11,2],[35,1,44,7],[0,0,0,4]]}
["Nome da sua Escola"]
[null,{"$f":"NomeDoProfessor","v":"Nome do Professor"}]
[null,{"$f":"Turma","v":"Turma"}]
[null,"Progresso até à data"]
[null,"2011-09-22"]
[]
[null,"Nome do Aluno:"]
[null,"Aluno 3"]
[]
[]
[null,"Classificação do Aluno",null,"Classificação","Percentagem","Pontuação do Aluno","Pontuação Total","Valor"]
[null,{"$f":"IFERROR(_xlfn.RANK.EQ(VLOOKUP(B8,'Registo de Notas'!$B$5:$I$7,5,FALSE),'Registo de Notas'!$F$5:$F$7) & \" em cada \"&COUNTA('Registo de Notas'!$B$5:$B$7) & \" alunos\",\"\")","v":"2 em cada 3 alunos"},null,{"$f":"IFERROR(VLOOKUP(NomeAluno,'Registo de Notas'!$B$5:$I$7,3,FALSE),\"\")","v":"Bom"},{"$f":"IFERROR(VLOOKUP(NomeAluno,'Registo de Notas'!$B$5:$I$7,4,FALSE),\"\")","v":0.83333333333333337},{"$f":"IFERROR(VLOOKUP(NomeAluno,'Registo de Notas'!$B$5:$I$7,5,FALSE),\"\")","v":75},{"$f":"PontuaçãoTotal","v":90},{"$f":"IFERROR(VLOOKUP(E12,'Critérios de Avaliação'!$B$7:$D$20,3,TRUE),\"\")","v":4}]
[]
[]
[]
[]
[]
[]
[]
[]
[]
[]
[]
[]
[]
[]
[]
[]
[]
[]
[]
[]
[]
[]
[null,"Comentários do Professor"]
[]
[]
[]
[]
[]
[]
[]
[]
[]
[]
[]
[]
[null,"Assinatura do Encarregado (se necessário)"]
[]
[]
[null,"X",null,null,null,"Data:"]

{"sheet":"Critérios de Avaliação","index":2,"n_rows":20,"n_cols":4,"rows_kept":20,"cut":false,"hidden":false,"merged":[[4,1,4,3],[2,1,2,4]]}
[null,"Calcular a Classificação"]
[]
[null,"Introduza os intervalos de percentagem para cada classificação na tabela abaixo para personalizar o modelo dos seus critérios de avaliação. "]
[]
[null,"Tabela de NOTAS e VALOR\n(Utilizada para calcular as notas dos alunos na folha Gradebook)"]
[null,"Pontuação","Classificação obtida","Valor"]
[null,0,"Mau",0]
[null,0.6,"Não Satisfaz -",1.67]
[null,0.63,"Não Satisfaz ",2]
[null,0.67,"Não Satisfaz +",2.33]
[null,0.7,"Satisfaz -",2.67]
[null,0.73,"Satisfaz",3]
[null,0.77,"Satisfaz +",3.33]
[null,0.8,"Bom -",3.67]
[null,0.83,"Bom",4]
[null,0.87,"Bom +",4.33]
[null,0.9,"Muito Bom -",4.67]
[null,0.93,"Muito Bom",5]
[null,0.97,"Excelente",5]
[null,"A pontuação e o valor têm de ser introduzidos por ordem Ascendente."]